lending/lending_fUSD_20241217
["ID","MTS","AMOUNT","RATE_DAILY","PERIOD"]
[345624022,1734394248165,-1389.94,0.00024999,4]
[345624023,1734394248175,-1389.94,0.00024999,4]
[345624024,1734394248185,-1389.94,0.00024999,4]
[345624025,1734394248195,-1389.94,0.00024999,4]
[345624026,1734394248204,-1389.94,0.00024999,4]
[345624027,1734394248214,-1389.94,0.00024999,4]
[345624028,1734394248224,-1389.94,0.00024999,4]
[345624029,1734394248233,-1389.94,0.00024999,4]
[345624030,1734394248243,-1389.94,0.00024999,4]
[345624031,1734394248253,-1389.94,0.00024999,4]
[345624032,1734394248263,-1389.94,0.00024999,4]
[345624033,1734394248274,-1390.06,0.00024999,4]
[345624034,1734394248286,-562.48,0.00024999,4]
[345624035,1734394248300,-562.48,0.00024999,4]
[345624036,1734394248313,-562.48,0.00024999,4]
[345624037,1734394248323,-562.48,0.00024999,4]
[345624038,1734394248336,-562.48,0.00024999,4]
[345624039,1734394248345,-562.48,0.00024999,4]
[345624040,1734394248356,-562.48,0.00024999,4]
[345624041,1734394248367,-954.46,0.00024999,4]
[345624042,1734394248378,-562.48,0.00024999,4]
[345624043,1734394248389,-954.46,0.00024999,4]
[345624044,1734394248399,-562.48,0.00024999,4]
[345624045,1734394248410,-562.48,0.00024999,4]
[345624046,1734394248419,-4253398.61252074,0.00025,4]
[345624047,1734394248428,-2821.28927668,0.00025,2]
[345624048,1734394248439,-42025.92256899,0.00025,2]
[345624049,1734394248448,-7952817.54499406,0.00025,2]
[345624050,1734394248459,-3191.82637932,0.00025,60]
[345624051,1734394248469,-157.64675959,0.00025,10]
[345624052,1734394248479,-200.0,0.00025,20]
[345624053,1734394248489,-3500.0,0.00025,2]
[345624054,1734394248498,-10000.0,0.00025,2]
[345624055,1734394248508,-14521.05857582,0.00025,10]
[345624056,1734394248518,-3600.0,0.00025,26]
[345624057,1734394248528,-150.0,0.00025,2]
[345624058,1734394248538,-202.0,0.00025,2]
[345624059,1734394248549,-150.0,0.00025,2]
[345624060,1734394248563,-10000.0,0.00025,30]
[345624061,1734394248573,-206.0,0.00025,2]
[345624062,1734394248584,-10000.0,0.00025,30]
[345624063,1734394248594,-238.0,0.00025,2]
[345624064,1734394248605,-10000.0,0.00025,30]
[345624065,1734394248615,-212.0,0.00025,2]
[345624066,1734394248626,-10000.0,0.00025,30]
[345624067,1734394248636,-10000.0,0.00025,30]
[345624068,1734394248646,-905.01,0.00025,2]
[345624069,1734394248656,-6692.56,0.00025,7]
[345624070,1734394248666,-150.0,0.00025,2]
[345624071,1734394248676,-202.4,0.00025,2]
[345624072,1734394248686,-500.0,0.00025,2]
[345624073,1734394248696,-500.0,0.00025,2]
[345624074,1734394248706,-500.0,0.00025,2]
[345624075,1734394248715,-500.0,0.00025,2]
[345624076,1734394248725,-500.0,0.00025,2]
[345624077,1734394248735,-200.0,0.00025,2]
[345624078,1734394248746,-50000.0,0.00025,12]
[345624079,1734394248756,-100005.63578233,0.00025,30]
[345624080,1734394248766,-62687.89844806,0.00025,2]
[345624081,1734394248776,-17733677.37423704,0.00025,2]
[345624082,1734394248986,-562.48,0.00024999,4]
[345624083,1734394248998,-467.52,0.00025,2]
[345624084,1734394249015,-2383.74000001,0.00025,2]
[345624085,1734394249032,-1189.14400883,0.00025,2]
[345624086,1734394249044,-975.22158187,0.00025,2]
[345624087,1734394249074,-562.48,0.00024999,4]
[345624088,1734394249084,-387.31726604,0.00024999,4]
[345624089,1734394249191,-567.14273396,0.00024999,4]
[345624090,1734394249202,-562.48,0.00024999,4]
[345624091,1734394249212,-954.46,0.00024999,4]
[345624092,1734394249222,-562.48,0.00024999,4]
[345624093,1734394249233,-954.46,0.00024999,4]
[345624094,1734394249242,-562.48,0.00024999,4]
[345624095,1734394249253,-954.46,0.00024999,4]
[345624096,1734394249263,-562.48,0.00024999,4]
[345624097,1734394249274,-954.46,0.00024999,4]
[345624098,1734394249285,-46265.09726604,0.00025,2]
[345624099,1734394249318,-954.46,0.00024999,4]
[345624100,1734394249329,-562.48,0.00024999,4]
[345624101,1734394249342,-157770.66613893,0.00025,2]
[345624102,1734394249528,-716.0,0.00024657,4]
[345624103,1734394249538,-29.66465666,0.00024997,4]
[345624104,1734394249549,-686.33534334,0.00024997,4]
[345624105,1734394249562,-716.0,0.00024998,4]
[345624106,1734394249573,-716.0,0.00024998,4]
[345624107,1734394249582,-40.64131699,0.00024999,4]
[345624108,1734394249594,-913.81868301,0.00024999,4]
[345624109,1734394249604,-562.48,0.00024999,4]
[345624110,1734394249614,-954.46,0.00024999,4]
[345624111,1734394249624,-562.48,0.00024999,4]
[345624112,1734394249633,-954.46,0.00024999,4]
[345624113,1734394249643,-562.48,0.00024999,4]
[345624114,1734394249653,-954.46,0.00024999,4]
[345624115,1734394249663,-562.66,0.00024999,4]
[345624116,1734394249674,-954.46,0.00024999,4]
[345624117,1734394249683,-716.0,0.00024999,4]
[345624118,1734394249694,-954.46,0.00024999,4]
[345624119,1734394249703,-716.0,0.00024999,4]
[345624120,1734394249712,-954.46,0.00024999,4]
[345624121,1734394249722,-716.0,0.00024999,4]
[345624122,1734394249731,-954.46,0.00024999,4]
[345624123,1734394249741,-716.0,0.00024999,4]
[345624124,1734394249751,-954.46,0.00024999,4]
[345624125,1734394249761,-716.0,0.00024999,4]
[345624126,1734394249770,-954.46,0.00024999,4]
[345624127,1734394249780,-535.94131699,0.00025,2]
[345624128,1734394249809,-370.91266568,0.00024999,4]
[345624129,1734394249825,-345.08733432,0.00024999,4]
[345624130,1734394249835,-371.42202272,0.00024999,4]
[345624131,1734394249941,-583.03797728,0.00024999,4]
[345624132,1734394250069,-641.96201772,0.00024999,4]
[345624133,1734394250082,-74.03798228,0.00024999,4]
[345624134,1734394250091,-954.52598366,0.00024999,4]
[345624135,1734394250101,-716.0,0.00024999,4]
[345624136,1734394250111,-716.0,0.00024999,4]
[345624137,1734394250121,-391.93603406,0.00024999,4]
[345624138,1734394250133,-324.06396594,0.00024999,4]
[345624139,1734394250142,-716.0,0.00024999,4]
[345624140,1734394250151,-716.0,0.00024999,4]
[345624141,1734394250161,-716.0,0.00024999,4]
[345624142,1734394250170,-17.71068416,0.00024999,4]
[345624143,1734394250182,-698.28931584,0.00024999,4]
[345624144,1734394250191,-716.0,0.00024999,4]
[345624145,1734394250201,-716.0,0.00024999,4]
[345624146,1734394250211,-56354.75849392,0.00025,2]
[345624147,1734394250227,-716.0,0.00024999,4]
[345624148,1734394250236,-1167.49772262,0.00025,2]
[345624149,1734394250248,-418.66907585,0.00025,2]
[345624150,1734394250271,-355.26871904,0.00024999,2]
[345624151,1734394278270,232622.44833954,0.00015005,2]
[345624152,1734394461508,150.55,0.00010137,2]
[345624155,1734394547355,450.0,0.00013,2]
[345624156,1734394548430,500.0,0.00015,2]
[345624157,1734394858304,162.13,0.00013699,2]
[345624158,1734395108537,678935.99555905,0.00013,2]
[345624160,1734395128868,7505.97488701,0.000139,2]
[345624161,1734395229217,-243.4783079,0.00019098,2]
[345624162,1734395254149,-222.56527834,0.00019002,2]
[345624163,1734395283692,38768.03397062,0.00013,2]
[345624164,1734395285016,196631.77926239,0.0001,2]
[345624179,1734395323502,2163.58798356,0.0001421,7]
[345624249,1734395350085,-2006.581632,0.00018924,2]
[345624250,1734395350106,-4485.64659771,0.0001902,7]
[345624251,1734395359122,-949.59038982,0.0001902,7]
[345624252,1734395359142,-895.8249818,0.00019097,2]
[345624253,1734395359164,-6680.16131705,0.00019197,2]
[345624254,1734395359186,-150.55,0.00019198,2]
[345624255,1734395359207,-416.55483636,0.0001998,2]
[345624256,1734395359227,-8025.98253503,0.0002,2]
[345624257,1734395359248,-151.0,0.0002097,2]
[345624258,1734395359269,-177.00862779,0.00021064,2]
[345624259,1734395359290,-500.0,0.00021164,2]
[345624260,1734395359470,-500.0,0.00021164,2]
[345624261,1734395359491,-1019.08,0.00021298,2]
[345624262,1734395359512,-48890.66423969,0.00022,3]
[345624281,1734395432265,-500.0,0.00021164,2]
[345624282,1734395432275,-391.00546868,0.0002174,2]
[345624283,1734395432288,-353.57453132,0.0002174,2]
[345624284,1734395432297,-614.25938196,0.00022,3]
[345624285,1734395432310,-495.07637835,0.00022,3]
[345624286,1734395432320,-150.0,0.00022488,4]
[345624287,1734395432330,-150.0,0.00022488,4]
[345624288,1734395432339,-250.0,0.0002256,2]
[345624289,1734395432349,-189.36,0.000228,2]
[345624290,1734395432359,-92.29387139,0.00022806,2]
[345624291,1734395432372,-97.06612861,0.00022806,2]
[345624292,1734395432382,-189.36,0.00022812,2]
[345624293,1734395432394,-189.36,0.00022818,2]
[345624294,1734395432403,-200.0,0.00022822,2]
[345624295,1734395432414,-189.36,0.00022824,2]
[345624296,1734395432425,-189.36,0.0002283,2]
[345624297,1734395432435,-189.36,0.00022836,2]
[345624298,1734395432445,-189.36,0.00022842,2]
[345624299,1734395432455,-189.36,0.00022848,2]
[345624300,1734395432464,-189.36,0.00022854,2]
[345624301,1734395432476,-189.36,0.0002286,2]
[345624302,1734395432486,-189.36,0.00022866,2]
[345624303,1734395432495,-189.36,0.00022872,2]
[345624304,1734395432505,-189.36,0.00022878,2]
[345624305,1734395432515,-189.36,0.00022884,2]
[345624306,1734395432524,-189.36,0.0002289,2]
[345624307,1734395432534,-189.36,0.00022896,2]
[345624308,1734395432545,-189.36,0.00022902,2]
[345624309,1734395432554,-189.36,0.00022908,2]
[345624310,1734395432563,-189.36,0.00022914,2]
[345624311,1734395432574,-850.0,0.00022914,2]
[345624312,1734395432583,-300.0,0.00022914,2]
[345624313,1734395432593,-21455.5261353,0.00023189,2]
[345624314,1734395432605,-489.76,0.00023189,2]
[345624315,1734395432618,-737.06837402,0.00023189,2]
[345624316,1734395432629,-1217.64549068,0.00023189,2]
[345624317,1734395432639,-275.59,0.00023189,2]
[345624318,1734395432649,-250.0,0.00023216,2]
[345624319,1734395432658,-862.62790299,0.0002324,2]
[345624320,1734395432670,-137.37209701,0.0002324,2]
[345624322,1734395432680,-807.72,0.00023255,2]
[345624324,1734395432689,-250.0,0.00023256,2]
[345624326,1734395432702,-596.54,0.0002326,2]
[345624328,1734395432712,-169.0,0.00023339,2]
[345624331,1734395432725,-182.77612555,0.00023343,2]
[345624333,1734395432739,-1182.71091713,0.00023343,2]
[345624335,1734395432752,-655.56295732,0.00023343,2]
[345624337,1734395432763,-362.61070837,0.00023356,2]
[345624339,1734395432775,-186.32633436,0.00023378,2]
[345624341,1734395432788,-313.67366564,0.00023378,2]
[345624343,1734395432798,-871.12,0.00023378,2]
[345624345,1734395432808,-150.0,0.00023446,2]
[345624347,1734395432819,-163.21,0.00023446,2]
[345624349,1734395432829,-1019.08,0.00023562,2]
[345624351,1734395432840,-152.85,0.00023585,30]
[345624353,1734395432851,-193.8,0.00023628,2]
[345624356,1734395432861,-762.97,0.00023631,2]
[345624358,1734395432870,-764.92,0.00023631,2]
[345624360,1734395432880,-764.98,0.00023631,2]
[345624361,1734395432889,-752.79,0.00023631,2]
[345624363,1734395432899,-150.0,0.00023737,4]
[345624365,1734395432909,-518.045,0.0002375,2]
[345624368,1734395432918,-250.0,0.00023756,2]
[345624370,1734395432928,-754.42,0.00023786,2]
[345624372,1734395432937,-748.07,0.0002381,2]
[345624374,1734395432947,-161.1,0.00023867,2]
[345624376,1734395432956,-333.2311,0.000239,2]
[345624378,1734395432966,-1655.14621496,0.000239,2]
[345624380,1734395432994,-288.2880902,0.000239,2]
[345624382,1734395433009,-1694.24047857,0.000239,2]
[345624385,1734395433021,-822.9,0.000239,2]
[345624387,1734395433033,-1134.58,0.000239,2]
[345624420,1734395438695,-8347.62201627,0.000239,2]
[345624421,1734395438706,-264.7346,0.000239,2]
[345624422,1734395438715,-738.22,0.00023933,2]
[345624423,1734395438731,-754.04,0.00023948,2]
[345624424,1734395438741,-740.07,0.0002397,2]
[345624425,1734395438751,-10064.99593518,0.00023999,2]
[345624426,1734395438761,-763.52,0.00024,2]
[345624427,1734395438956,-753.78,0.00024,2]
[345624428,1734395438966,-22297.0466994,0.00024,2]
[345624429,1734395438985,-879.51,0.00024041,2]
[345624430,1734395438998,-275.59,0.00024047,2]
[345624431,1734395439015,-1810.037,0.00024092,5]
[345624432,1734395439026,-175.374,0.00024092,5]
[345624433,1734395439037,-200.0,0.000241,2]
[345624434,1734395439048,-1000.0,0.00024155,2]
[345624435,1734395439060,-500.0,0.00024156,2]
[345624436,1734395439071,-439.53,0.00024192,2]
[345624437,1734395439082,-500.0,0.000244,120]
[345624438,1734395439093,-975.93,0.00024411,2]
[345624439,1734395439104,-864.28,0.00024411,2]
[345624440,1734395439115,-150.0,0.00024411,2]
[345624441,1734395439125,-364.71,0.00024411,2]
[345624442,1734395439136,-975.93,0.00024411,2]
[345624443,1734395439146,-150.0,0.00024411,2]
[345624444,1734395439157,-364.71,0.00024411,2]
[345624445,1734395439169,-364.71,0.00024411,2]
[345624446,1734395439180,-150.0,0.00024411,2]
[345624447,1734395439191,-946.39,0.00024411,2]
[345624448,1734395439209,-150.0,0.00024411,2]
[345624449,1734395439226,-364.71,0.00024411,2]
[345624450,1734395439238,-354.31,0.00024411,2]
[345624451,1734395439248,-150.0,0.00024411,2]
[345624452,1734395439258,-150.0,0.00024411,2]
[345624453,1734395439268,-150.0,0.00024491,120]
[345624454,1734395439278,-768.51,0.00024548,2]
[345624455,1734395439288,-869.97,0.00024548,2]
[345624456,1734395439298,-436.17,0.00024548,2]
[345624457,1734395439309,-6030.549,0.00024557,2]
[345624458,1734395439319,-150.0,0.00024598,120]
[345624459,1734395439330,-156.494819,0.00024657,4]
[345624460,1734395439340,-174.115522,0.00024657,4]
[345624461,1734395439350,-500.0,0.00024657,4]
[345624462,1734395439361,-500.0,0.00024657,4]
[345624463,1734395439371,-500.0,0.00024657,4]
[345624464,1734395439380,-500.0,0.00024657,4]
[345624465,1734395439389,-227.26,0.00024657,4]
[345624466,1734395439399,-500.0,0.00024657,4]
[345624467,1734395439410,-500.0,0.00024657,4]
[345624468,1734395439420,-500.0,0.00024748,4]
[345624469,1734395439429,-500.0,0.00024748,4]
[345624470,1734395439439,-500.0,0.00024748,4]
[345624471,1734395439449,-500.0,0.00024748,4]
[345624472,1734395439458,-178.01,0.0002475,2]
[345624473,1734395439468,-577.67428149,0.0002475,2]
[345624474,1734395439486,-2301.04735,0.0002475,2]
[345624475,1734395439496,-199.09,0.00024772,2]
[345624476,1734395439505,-500.0,0.00024799,2]
[345624477,1734395439515,-500.0,0.00024799,2]
[345624478,1734395439525,-466.37466802,0.00024799,2]
[345624479,1734395439535,-502.63,0.00024799,4]
[345624480,1734395439544,-500.0,0.00024799,4]
[345624481,1734395439554,-500.0,0.00024799,4]
[345624482,1734395439564,-2585.62410357,0.000248,2]
[345624483,1734395439573,-500.0,0.000248,2]
[345624484,1734395439583,-1538.0,0.000248,2]
[345624485,1734395439593,-96434.68117048,0.000248,2]
[345624486,1734395439602,-193.8,0.00024809,2]
[345624487,1734395439612,-420.0,0.00024876,2]
[345624488,1734395439621,-800.0,0.00024877,2]
[345624489,1734395439631,-200.0,0.0002488,10]
[345624490,1734395439640,-17084.9056,0.00024899,2]
[345624492,1734395439650,-5000.0,0.00024899,2]
[345624494,1734395439659,-2500.0,0.00024899,2]
[345624496,1734395439668,-500.0,0.00024899,4]
[345624498,1734395439678,-500.0,0.00024899,4]
[345624500,1734395439687,-500.0,0.00024899,4]
[345624502,1734395439697,-500.0,0.00024899,4]
[345624504,1734395439706,-500.0,0.00024899,4]
[345624506,1734395439716,-500.0,0.00024899,4]
[345624508,1734395439731,-432.99578373,0.00024899,4]
[345624510,1734395439740,-500.0,0.00024899,4]
[345624512,1734395439749,-500.0,0.00024899,4]
[345624514,1734395439759,-500.0,0.00024899,4]
[345624516,1734395439772,-500.0,0.00024899,4]
[345624518,1734395439783,-1759.23,0.00024899,4]
[345624520,1734395439792,-500.0,0.00024899,4]
[345624522,1734395439802,-500.0,0.00024899,4]
[345624523,1734395439811,-578.19,0.00024899,4]
[345624525,1734395439820,-500.0,0.00024899,4]
[345624527,1734395439829,-500.0,0.00024899,4]
[345624529,1734395439838,-593.48317225,0.00024899,4]
[345624531,1734395439847,-500.0,0.00024899,4]
[345624533,1734395439859,-500.0,0.00024899,4]
[345624535,1734395439869,-500.0,0.00024899,4]
[345624537,1734395439878,-500.0,0.00024899,4]
[345624539,1734395439887,-500.0,0.00024899,4]
[345624541,1734395439897,-500.0,0.00024899,4]
[345624543,1734395439906,-500.0,0.00024899,4]
[345624545,1734395439919,-500.0,0.00024899,4]
[345624547,1734395439928,-740.73,0.00024899,4]
[345624549,1734395439937,-500.0,0.00024899,4]
[345624551,1734395439947,-729.16,0.00024899,7]
[345624553,1734395439956,-1216.2,0.00024899,4]
[345624555,1734395439965,-500.0,0.00024899,4]
[345624557,1734395439979,-500.0,0.00024899,4]
[345624559,1734395439990,-3354.48214647,0.00024899,2]
[345624561,1734395439999,-3534.03991556,0.00024899,2]
[345624563,1734395440009,-500.0,0.00024899,4]
[345624565,1734395440018,-500.0,0.00024899,4]
[345624568,1734395440028,-503.6440326,0.00024899,4]
[345624570,1734395440037,-500.0,0.00024899,4]
[345624572,1734395440046,-540.50193386,0.00024899,4]
[345624574,1734395440055,-500.0,0.00024899,4]
[345624576,1734395440064,-501.29221837,0.00024899,4]
[345624578,1734395440074,-371.5982238,0.00024899,4]
[345624580,1734395440083,-500.0,0.00024899,4]
[345624582,1734395440092,-496.50239513,0.00024899,4]
[345624584,1734395440101,-250.57138847,0.00024899,4]
[345624586,1734395440110,-500.0,0.00024899,4]
[345624588,1734395440120,-500.0,0.00024899,4]
[345624590,1734395440129,-4800.6736,0.000249,2]
[345624592,1734395440138,-168.0315475,0.000249,2]
[345624595,1734395440147,-217.6,0.000249,31]
[345624597,1734395440157,-217.6,0.000249,31]
[345624599,1734395440166,-217.6,0.000249,31]
[345624601,1734395440175,-217.6,0.000249,31]
[345624603,1734395440184,-217.6,0.000249,31]
[345624605,1734395440194,-217.6,0.000249,31]
[345624607,1734395440204,-217.6,0.000249,31]
[345624609,1734395440214,-217.6,0.000249,31]
[345624611,1734395440226,-217.6,0.000249,31]
[345624613,1734395440236,-217.6,0.000249,31]
[345624615,1734395440245,-217.6,0.000249,31]
[345624617,1734395440254,-217.6,0.000249,31]
[345624619,1734395440263,-217.6,0.000249,31]
[345624621,1734395440272,-217.6,0.000249,31]
[345624623,1734395440281,-217.6,0.000249,31]
[345624625,1734395440291,-217.6,0.000249,31]
[345624627,1734395440300,-3482.7941548,0.000249,30]
[345624629,1734395440309,-1221.37616668,0.000249,2]
[345624631,1734395440319,-334.13255577,0.000249,2]
[345624633,1734395440328,-275.59,0.00024905,2]
[345624635,1734395440337,-500.0,0.00024973,2]
[345624637,1734395440346,-150.0,0.00024986,4]
[345624639,1734395440356,-150.0,0.00024986,4]
[345624641,1734395440365,-168.43997368,0.0002499,2]
[345624643,1734395440374,-500.0,0.00024997,4]
[345624645,1734395440383,-641.99,0.00024997,4]
[345624647,1734395440392,-500.0,0.00024997,4]
[345624649,1734395440402,-500.0,0.00024997,4]
[345624651,1734395440411,-500.0,0.00024997,4]
[345624653,1734395440420,-151.121709,0.00024998,12]
[345624655,1734395440429,-151.121709,0.00024998,10]
[345624657,1734395440438,-151.121709,0.00024998,8]
[345624659,1734395440447,-500.0,0.00024998,4]
[345624661,1734395440456,-520.78,0.00024998,4]
[345624663,1734395440465,-500.0,0.00024998,4]
[345624665,1734395440478,-500.0,0.00024998,4]
[345624666,1734395440488,-500.0,0.00024998,4]
[345624668,1734395440497,-500.0,0.00024998,4]
[345624670,1734395440507,-500.0,0.00024998,4]
[345624672,1734395440517,-483.44,0.00024998,4]
[345624674,1734395440526,-516.52,0.00024998,4]
[345624676,1734395440535,-500.0,0.00024998,4]
[345624678,1734395440545,-500.0,0.00024998,4]
[345624680,1734395440554,-315.18,0.00024998,4]
[345624682,1734395440562,-500.0,0.00024998,4]
[345624684,1734395440571,-500.0,0.00024998,4]
[345624686,1734395440580,-500.0,0.00024998,4]
[345624688,1734395440589,-500.0,0.00024998,4]
[345624690,1734395440598,-257.43,0.00024998,4]
[345624692,1734395440607,-500.0,0.00024998,4]
[345624694,1734395440616,-500.0,0.00024998,4]
[345624696,1734395440626,-582.47,0.00024998,4]
[345624698,1734395440635,-500.0,0.00024998,4]
[345624700,1734395440644,-500.0,0.00024998,4]
[345624702,1734395440653,-500.0,0.00024998,4]
[345624704,1734395440662,-519.8,0.00024998,4]
[345624706,1734395440671,-500.0,0.00024998,4]
[345624708,1734395440680,-500.0,0.00024998,4]
[345624710,1734395440689,-500.0,0.00024998,4]
[345624711,1734395440698,-500.0,0.00024998,4]
[345624713,1734395440707,-500.0,0.00024998,4]
[345624715,1734395440717,-500.0,0.00024998,4]
[345624717,1734395440731,-500.0,0.00024998,4]
[345624719,1734395440740,-525.8361628,0.00024998,4]
[345624721,1734395440749,-500.0,0.00024998,4]
[345624723,1734395440758,-500.0,0.00024998,4]
[345624725,1734395440772,-300.0,0.00024999,10]
[345624727,1734395440781,-300.0,0.00024999,10]
[345624730,1734395440790,-300.0,0.00024999,10]
[345624732,1734395440799,-156.494819,0.00024999,4]
[345624733,1734395440808,-174.115522,0.00024999,4]
[345624735,1734395440817,-156.494819,0.00024999,4]
[345624737,1734395440826,-174.115522,0.00024999,4]
[345624739,1734395440835,-156.494819,0.00024999,4]
[345624741,1734395440844,-174.115522,0.00024999,4]
[345624743,1734395440853,-174.115522,0.00024999,4]
[345624745,1734395440862,-150.0,0.00024999,30]
[345624747,1734395440872,-1000.0001,0.00024999,2]
[345624749,1734395440881,-2000.0,0.00024999,2]
[345624751,1734395440890,-151.121709,0.00024999,2]
[345624753,1734395440900,-151.121709,0.00024999,6]
[345624755,1734395440909,-151.121709,0.00024999,8]
[345624757,1734395440918,-222.121709,0.00024999,12]
[345624759,1734395440928,-222.121709,0.00024999,10]
[345624761,1734395440936,-2000.0,0.00024999,2]
[345624763,1734395440946,-500.0,0.00024999,4]
[345624765,1734395440955,-500.0,0.00024999,4]
[345624767,1734395440965,-500.0,0.00024999,4]
[345624769,1734395440978,-500.0,0.00024999,4]
[345624771,1734395440988,-500.0,0.00024999,4]
[345624773,1734395440997,-500.0,0.00024999,4]
[345624775,1734395441006,-500.0,0.00024999,4]
[345624776,1734395441015,-500.0,0.00024999,4]
[345624777,1734395441024,-500.0,0.00024999,4]
[345624778,1734395441033,-500.0,0.00024999,4]
[345624779,1734395441042,-500.0,0.00024999,4]
[345624780,1734395441052,-500.0,0.00024999,4]
[345624781,1734395441061,-426.05310976,0.00024999,4]
[345624782,1734395441070,-500.0,0.00024999,4]
[345624783,1734395441080,-439.49924185,0.00024999,4]
[345624784,1734395441089,-500.0,0.00024999,4]
[345624785,1734395441098,-500.0,0.00024999,4]
[345624786,1734395441107,-516.70006143,0.00024999,4]
[345624787,1734395441116,-500.0,0.00024999,4]
[345624788,1734395441126,-500.0,0.00024999,4]
[345624789,1734395441135,-500.0,0.00024999,4]
[345624790,1734395441144,-500.0,0.00024999,4]
[345624791,1734395441153,-500.0,0.00024999,4]
[345624792,1734395441163,-500.0,0.00024999,4]
[345624793,1734395441172,-500.0,0.00024999,4]
[345624794,1734395441181,-500.0,0.00024999,4]
[345624795,1734395441190,-500.0,0.00024999,4]
[345624796,1734395441199,-500.0,0.00024999,4]
[345624797,1734395441209,-500.0,0.00024999,4]
[345624799,1734395441218,-500.0,0.00024999,4]
[345624801,1734395441233,-500.0,0.00024999,4]
[345624803,1734395441242,-500.0,0.00024999,4]
[345624805,1734395441250,-500.0,0.00024999,4]
[345624807,1734395441259,-500.0,0.00024999,4]
[345624808,1734395441268,-500.0,0.00024999,4]
[345624810,1734395441278,-500.0,0.00024999,4]
[345624812,1734395441287,-500.0,0.00024999,4]
[345624814,1734395441297,-500.0,0.00024999,4]
[345624816,1734395441306,-500.0,0.00024999,4]
[345624818,1734395441315,-641.51000041,0.00024999,4]
[345624820,1734395441325,-500.0,0.00024999,4]
[345624822,1734395441334,-500.0,0.00024999,4]
[345624824,1734395441343,-500.0,0.00024999,4]
[345624826,1734395441352,-500.0,0.00024999,4]
[345624828,1734395441361,-500.0,0.00024999,4]
[345624830,1734395441370,-500.0,0.00024999,4]
[345624832,1734395441379,-500.0,0.00024999,4]
[345624834,1734395441389,-500.0,0.00024999,4]
[345624836,1734395441399,-500.0,0.00024999,4]
[345624838,1734395441409,-648.12,0.00024999,4]
[345624839,1734395441418,-500.0,0.00024999,4]
[345624840,1734395441427,-500.0,0.00024999,4]
[345624841,1734395441436,-500.0,0.00024999,4]
[345624842,1734395441445,-390.46,0.00024999,4]
[345624843,1734395441454,-500.0,0.00024999,4]
[345624844,1734395441463,-500.0,0.00024999,4]
[345624845,1734395441475,-284.24,0.00024999,4]
[345624846,1734395441484,-500.0,0.00024999,4]
[345624847,1734395441493,-510.98337066,0.00024999,4]
[345624848,1734395441502,-504.04959366,0.00024999,4]
[345624849,1734395441512,-500.0,0.00024999,4]
[345624850,1734395441521,-500.0,0.00024999,4]
[345624851,1734395441530,-500.0,0.00024999,4]
[345624852,1734395441539,-500.0,0.00024999,4]
[345624853,1734395441549,-500.0,0.00024999,4]
[345624854,1734395441558,-500.0,0.00024999,4]